fUST/lending_fUST_20260516
["ID","MTS","AMOUNT","RATE_DAILY","PERIOD"]
[422370873,1778889039000,-161.65638237,0.00010636,2]
[422370832,1778889039000,-241.20578057,0.00010506,2]
[422370814,1778889039000,-241.20578057,0.00010232,2]
[422370803,1778889039000,-500.0,0.0001014,2]
[422370808,1778889039000,-491.498,0.00010141,2]
[422370876,1778889039000,-500.0,0.00010688,2]
[422370759,1778889039000,-500.0,0.0001014,2]
[422370761,1778889039000,-500.0,0.0001014,2]
[422370763,1778889039000,-152.35798381,0.0001014,2]
[422370757,1778889039000,-500.0,0.0001014,2]
[422370765,1778889039000,-478.93122002,0.0001014,2]
[422370767,1778889039000,-185.25185401,0.0001014,2]
[422370755,1778889039000,-154.01060343,0.00010135,2]
[422370753,1778889039000,-151.0,0.00010135,2]
[422370768,1778889039000,-344.79830596,0.0001014,2]
[422370771,1778889039000,-500.0,0.0001014,2]
[422370775,1778889039000,-500.0,0.0001014,2]
[422370773,1778889039000,-500.0,0.0001014,2]
[422370778,1778889039000,-500.0,0.0001014,2]
[422370786,1778889039000,-500.0,0.0001014,2]
[422370790,1778889039000,-500.0,0.0001014,2]
[422370788,1778889039000,-500.0,0.0001014,2]
[422370777,1778889039000,-500.0,0.0001014,2]
[422370782,1778889039000,-500.0,0.0001014,2]
[422370780,1778889039000,-500.0,0.0001014,2]
[422370793,1778889039000,-500.0,0.0001014,2]
[422370795,1778889039000,-246.87214142,0.0001014,2]
[422370792,1778889039000,-500.0,0.0001014,2]
[422370797,1778889039000,-500.0,0.0001014,2]
[422370751,1778889039000,-151.0,0.00010135,2]
[422370805,1778889039000,-500.0,0.0001014,2]
[422370799,1778889039000,-500.0,0.0001014,2]
[422370810,1778889039000,-1413535.65280815,0.00010141,2]
[422370806,1778889039000,-500.0,0.0001014,2]
[422370812,1778889039000,-1000.0,0.000102,2]
[422370874,1778889039000,-621.78829552,0.00010659,2]
[422370784,1778889039000,-500.0,0.0001014,2]
[422370879,1778889039000,-644.79446246,0.00010714,2]
[422370930,1778889039000,-549.42,0.00010958,2]
[422370931,1778889039000,-500.0,0.00010958,2]
[422370933,1778889039000,-587.98,0.00010958,2]
[422370934,1778889039000,-500.0,0.00010958,2]
[422370938,1778889039000,-531.25,0.00010958,2]
[422370946,1778889039000,-500.0,0.00010958,2]
[422370935,1778889039000,-195.32879743,0.00010958,2]
[422370936,1778889039000,-500.0,0.00010958,2]
[422370937,1778889039000,-814.91,0.00010958,2]
[422370944,1778889039000,-500.0,0.00010958,2]
[422370939,1778889039000,-500.0,0.00010958,2]
[422370940,1778889039000,-1382.74,0.00010958,2]
[422370941,1778889039000,-629.14,0.00010958,2]
[422370945,1778889039000,-500.0,0.00010958,2]
[422370929,1778889039000,-500.0,0.00010958,2]
[422370943,1778889039000,-799.49,0.00010958,2]
[422370948,1778889039000,-541.48,0.00010958,2]
[422370949,1778889039000,-500.0,0.00010958,2]
[422370947,1778889039000,-500.0,0.00010958,2]
[422370950,1778889039000,-930.7,0.00010958,2]
[422370954,1778889039000,-500.0,0.00010958,2]
[422370951,1778889039000,-1493.38,0.00010958,2]
[422370955,1778889039000,-500.0,0.00010958,2]
[422370959,1778889039000,-621.63,0.00010958,2]
[422370952,1778889039000,-625.76,0.00010958,2]
[422370953,1778889039000,-500.0,0.00010958,2]
[422370956,1778889039000,-1566.92,0.00010958,2]
[422370958,1778889039000,-537.66966568,0.00010958,2]
[422370960,1778889039000,-500.0,0.00010958,2]
[422370881,1778889039000,-500.0,0.00010742,2]
[422370942,1778889039000,-500.0,0.00010958,2]
[422370932,1778889039000,-500.0,0.00010958,2]
[422370801,1778889039000,-500.0,0.0001014,2]
[422370928,1778889039000,-500.0,0.00010958,2]
[422370891,1778889039000,-207.07204241,0.000109,2]
[422370882,1778889039000,-668.65185757,0.00010769,2]
[422370893,1778889039000,-745.65223616,0.00010934,2]
[422370889,1778889039000,-719.04747942,0.00010879,2]
[422370897,1778889039000,-500.0,0.00010958,2]
[422370895,1778889039000,-728.9482,0.00010958,2]
[422370885,1778889039000,-693.3919763,0.00010824,2]
[422370903,1778889039000,-500.0,0.00010958,2]
[422370901,1778889039000,-728.81,0.00010958,2]
[422370887,1778889039000,-201.00481714,0.00010835,2]
[422370899,1778889039000,-500.0,0.00010958,2]
[422370909,1778889039000,-672.04,0.00010958,2]
[422370905,1778889039000,-500.0,0.00010958,2]
[422370907,1778889039000,-500.0,0.00010958,2]
[422370919,1778889039000,-607.13,0.00010958,2]
[422370926,1778889039000,-500.0,0.00010958,2]
[422370911,1778889039000,-314.07213964,0.00010958,2]
[422370917,1778889039000,-500.0,0.00010958,2]
[422370927,1778889039000,-500.0,0.00010958,2]
[422370925,1778889039000,-500.0,0.00010958,2]
[422370922,1778889039000,-500.0,0.00010958,2]
[422370921,1778889039000,-500.0,0.00010958,2]
[422370923,1778889039000,-500.0,0.00010958,2]
[422370924,1778889039000,-500.0,0.00010958,2]
[422370918,1778889039000,-505.9,0.00010958,2]
[422370920,1778889039000,-525.61,0.00010958,2]
[422370916,1778889039000,-869.11,0.00010958,2]
[422370912,1778889039000,-500.0,0.00010958,2]
[422370915,1778889039000,-881.4,0.00010958,2]
[422370913,1778889039000,-500.0,0.00010958,2]
[422370914,1778889039000,-500.0,0.00010958,2]
[422371001,1778889040000,-151.0,0.00010958,2]
[422371002,1778889040000,-500.0,0.00010958,2]
[422371007,1778889040000,-500.0,0.00010958,2]
[422371003,1778889040000,-500.0,0.00010958,2]
[422371000,1778889040000,-151.0,0.00010958,2]
[422370998,1778889040000,-500.0,0.00010958,2]
[422371005,1778889040000,-500.0,0.00010958,2]
[422371010,1778889040000,-2726.88,0.00010958,2]
[422371009,1778889040000,-500.0,0.00010958,2]
[422371008,1778889040000,-1789.66,0.00010958,2]
[422370999,1778889040000,-4344.7,0.00010958,2]
[422370996,1778889040000,-500.0,0.00010958,2]
[422371006,1778889040000,-500.0,0.00010958,2]
[422371004,1778889040000,-2015.84,0.00010958,2]
[422371017,1778889040000,-1355.62,0.00010958,2]
[422371012,1778889040000,-1570.05,0.00010958,2]
[422371020,1778889040000,-807.26,0.00010958,2]
[422371019,1778889040000,-32191.41,0.00010958,2]
[422371011,1778889040000,-500.0,0.00010958,2]
[422371013,1778889040000,-3780.33,0.00010958,2]
[422371021,1778889040000,-686.46,0.00010958,2]
[422371024,1778889040000,-1786.95,0.00010958,2]
[422371014,1778889040000,-897.79,0.00010958,2]
[422371018,1778889040000,-500.0,0.00010958,2]
[422371016,1778889040000,-1733.94,0.00010958,2]
[422371015,1778889040000,-2701.59,0.00010958,2]
[422371022,1778889040000,-1908.77,0.00010958,2]
[422370990,1778889040000,-871.29,0.00010958,2]
[422370997,1778889040000,-1021.0,0.00010958,2]
[422370991,1778889040000,-500.0,0.00010958,2]
[422370984,1778889040000,-500.0,0.00010958,2]
[422370992,1778889040000,-811.64,0.00010958,2]
[422370962,1778889040000,-845.37,0.00010958,2]
[422370961,1778889040000,-521.88,0.00010958,2]
[422370964,1778889040000,-500.0,0.00010958,2]
[422370972,1778889040000,-500.0,0.00010958,2]
[422370973,1778889040000,-936.17,0.00010958,2]
[422370965,1778889040000,-1862.75,0.00010958,2]
[422370963,1778889040000,-500.0,0.00010958,2]
[422370966,1778889040000,-3313.96,0.00010958,2]
[422370967,1778889040000,-617.52,0.00010958,2]
[422370968,1778889040000,-1668.01,0.00010958,2]
[422370970,1778889040000,-1046.52,0.00010958,2]
[422370971,1778889040000,-528.76,0.00010958,2]
[422370969,1778889040000,-1435.36,0.00010958,2]
[422370975,1778889040000,-372.67587191,0.00010958,2]
[422370978,1778889040000,-500.0,0.00010958,2]
[422370976,1778889040000,-500.0,0.00010958,2]
[422370977,1778889040000,-1371.39,0.00010958,2]
[422370993,1778889040000,-1380.24,0.00010958,2]
[422370994,1778889040000,-4127.74,0.00010958,2]
[422370988,1778889040000,-548.61,0.00010958,2]
[422370989,1778889040000,-5036.7,0.00010958,2]
[422370981,1778889040000,-500.0,0.00010958,2]
[422370983,1778889040000,-1376.69,0.00010958,2]
[422370995,1778889040000,-1410.14,0.00010958,2]
[422370985,1778889040000,-4382.9,0.00010958,2]
[422370979,1778889040000,-544.02,0.00010958,2]
[422370986,1778889040000,-500.0,0.00010958,2]
[422370982,1778889040000,-1528.02,0.00010958,2]
[422370980,1778889040000,-1298.23,0.00010958,2]
[422371025,1778889040000,-623.01,0.00010958,2]
[422370974,1778889040000,-500.0,0.00010958,2]
[422370987,1778889040000,-1668.17,0.00010958,2]
[422371027,1778889040000,-906.0,0.00010958,2]
[422371023,1778889040000,-6250.19,0.00010958,2]
[422371028,1778889040000,-500.0,0.00010958,2]
[422371067,1778889040000,-500.0,0.00011232,2]
[422371057,1778889040000,-571.9627,0.00011232,2]
[422371060,1778889040000,-728.81,0.00011232,2]
[422371066,1778889040000,-500.0,0.00011232,2]
[422371069,1778889040000,-869.11,0.00011232,2]
[422371079,1778889040000,-500.0,0.00011232,2]
[422371068,1778889040000,-881.4,0.00011232,2]
[422371070,1778889040000,-500.0,0.00011232,2]
[422371074,1778889040000,-500.0,0.00011232,2]
[422371073,1778889040000,-525.61,0.00011232,2]
[422371080,1778889040000,-500.0,0.00011232,2]
[422371071,1778889040000,-505.9,0.00011232,2]
[422371078,1778889040000,-500.0,0.00011232,2]
[422371075,1778889040000,-500.0,0.00011232,2]
[422371058,1778889040000,-500.0,0.00011232,2]
[422371072,1778889040000,-607.13,0.00011232,2]
[422371026,1778889040000,-1416.21,0.00010958,2]
[422371082,1778889040000,-500.0,0.00011232,2]
[422371092,1778889040000,-1382.74,0.00011232,2]
[422371093,1778889040000,-629.14,0.00011232,2]
[422371081,1778889040000,-500.0,0.00011232,2]
[422371085,1778889040000,-500.0,0.00011232,2]
[422371090,1778889040000,-531.25,0.00011232,2]
[422371087,1778889040000,-500.0,0.00011232,2]
[422371083,1778889040000,-549.42,0.00011232,2]
[422371089,1778889040000,-814.91,0.00011232,2]
[422371091,1778889040000,-500.0,0.00011232,2]
[422371084,1778889040000,-500.0,0.00011232,2]
[422371088,1778889040000,-500.0,0.00011232,2]
[422371086,1778889040000,-587.98,0.00011232,2]
[422371076,1778889040000,-500.0,0.00011232,2]
[422371064,1778889040000,-672.04,0.00011232,2]
[422371077,1778889040000,-500.0,0.00011232,2]
[422371059,1778889040000,-500.0,0.00011232,2]
[422371062,1778889040000,-500.0,0.00011232,2]
[422371029,1778889040000,-2554.49,0.00010958,2]
[422371030,1778889040000,-2028.77,0.00010958,2]
[422371033,1778889040000,-2160.47,0.00010958,2]
[422371035,1778889040000,-500.0,0.00010958,2]
[422371034,1778889040000,-208.40099167,0.00010958,2]
[422371031,1778889040000,-4575.68,0.00010958,2]
[422371037,1778889040000,-500.0,0.00010958,2]
[422371036,1778889040000,-4054.46,0.00010958,2]
[422371038,1778889040000,-2595.57,0.00010958,2]
[422371032,1778889040000,-735.99,0.00010958,2]
[422371039,1778889040000,-216.0,0.00010959,3]
[422371051,1778889040000,-793.0,0.000111,2]
[422371048,1778889040000,-443.0,0.00011056,2]
[422371044,1778889040000,-801.85129955,0.00011044,2]
[422371052,1778889040000,-300.0,0.00011113,2]
[422371045,1778889040000,-647.0,0.00011056,2]
[422371043,1778889040000,-207.2297613,0.00011036,2]
[422371061,1778889040000,-500.0,0.00011232,2]
[422371065,1778889040000,-256.01460367,0.00011232,2]
[422371056,1778889040000,-2287.8671,0.00011232,2]
[422371054,1778889040000,-394.19918943,0.00011185,2]
[422371055,1778889040000,-256.18146889,0.00011224,2]
[422371050,1778889040000,-150.362,0.00011056,2]
[422371063,1778889040000,-500.0,0.00011232,2]
[422371053,1778889040000,-5931.94566821,0.00011132,2]
[422371047,1778889040000,-1412.0,0.00011056,2]
[422371042,1778889040000,-456.513297,0.00011036,2]
[422371046,1778889040000,-2256.271,0.00011056,2]
[422371041,1778889040000,-773.2413689,0.00010989,2]
[422371040,1778889040000,-500.0,0.00010962,2]
[422371049,1778889040000,-213.324,0.00011056,2]
[422371196,1778889041000,-500.0,0.00011506,2]
[422371197,1778889041000,-225.38977988,0.00011506,2]
[422371209,1778889041000,-607.13,0.00011506,2]
[422371198,1778889041000,-728.81,0.00011506,2]
[422371190,1778889041000,-4098.90350216,0.00011458,2]
[422371195,1778889041000,-500.0,0.00011506,2]
[422371193,1778889041000,-2287.8671,0.00011506,2]
[422371185,1778889041000,-160.0,0.00011236,3]
[422371192,1778889041000,-500.0,0.00011501,2]
[422371188,1778889041000,-166.3051,0.00011369,2]
[422371191,1778889041000,-3000.0,0.000115,30]
[422371194,1778889041000,-571.9627,0.00011506,2]
[422371200,1778889041000,-500.0,0.00011506,2]
[422371184,1778889041000,-500.0,0.00011236,2]
[422371186,1778889041000,-2171.18946243,0.00011276,2]
[422371189,1778889041000,-2305.63321997,0.0001138,2]
[422371199,1778889041000,-500.0,0.00011506,2]
[422371202,1778889041000,-672.04,0.00011506,2]
[422371208,1778889041000,-505.9,0.00011506,2]
[422371187,1778889041000,-1024.72587554,0.00011303,2]
[422371211,1778889041000,-270.7501261,0.00011506,2]
[422371218,1778889041000,-463.24603296,0.00011506,2]
[422371215,1778889041000,-500.0,0.00011506,2]
[422371220,1778889041000,-549.42,0.00011506,2]
[422371219,1778889041000,-500.0,0.00011506,2]
[422371213,1778889041000,-500.0,0.00011506,2]
[422371201,1778889041000,-500.0,0.00011506,2]
[422371216,1778889041000,-500.0,0.00011506,2]
[422371214,1778889041000,-500.0,0.00011506,2]
[422371212,1778889041000,-500.0,0.00011506,2]
[422371206,1778889041000,-869.11,0.00011506,2]
[422371203,1778889041000,-500.0,0.00011506,2]
[422371207,1778889041000,-500.0,0.00011506,2]
[422371204,1778889041000,-500.0,0.00011506,2]
[422371205,1778889041000,-881.4,0.00011506,2]
[422371210,1778889041000,-525.61,0.00011506,2]
[422371217,1778889041000,-500.0,0.00011506,2]
[422371179,1778889041000,-2160.47,0.00011232,2]
[422371172,1778889041000,-1416.21,0.00011232,2]
[422371128,1778889041000,-1298.23,0.00011232,2]
[422371118,1778889041000,-1435.36,0.00011232,2]
[422371129,1778889041000,-500.0,0.00011232,2]
[422371120,1778889041000,-528.76,0.00011232,2]
[422371121,1778889041000,-500.0,0.00011232,2]
[422371117,1778889041000,-1668.01,0.00011232,2]
[422371122,1778889041000,-936.17,0.00011232,2]
[422371119,1778889041000,-1046.52,0.00011232,2]
[422371111,1778889041000,-845.37,0.00011232,2]
[422371126,1778889041000,-500.0,0.00011232,2]
[422371123,1778889041000,-500.0,0.00011232,2]
[422371124,1778889041000,-500.0,0.00011232,2]
[422371127,1778889041000,-544.02,0.00011232,2]
[422371132,1778889041000,-500.0,0.00011232,2]
[422371141,1778889041000,-1380.24,0.00011232,2]
[422371142,1778889041000,-4127.74,0.00011232,2]
[422371133,1778889041000,-4382.9,0.00011232,2]
[422371131,1778889041000,-1376.69,0.00011232,2]
[422371125,1778889041000,-1371.39,0.00011232,2]
[422371115,1778889041000,-3313.96,0.00011232,2]
[422371105,1778889041000,-500.0,0.00011232,2]
[422371109,1778889041000,-500.0,0.00011232,2]
[422371180,1778889041000,-292.88160983,0.00011232,2]
[422371094,1778889041000,-500.0,0.00011232,2]
[422371096,1778889041000,-500.0,0.00011232,2]
[422371095,1778889041000,-799.49,0.00011232,2]
[422371097,1778889041000,-500.0,0.00011232,2]
[422371101,1778889041000,-500.0,0.00011232,2]
[422371100,1778889041000,-541.48,0.00011232,2]
[422371102,1778889041000,-930.7,0.00011232,2]
[422371099,1778889041000,-500.0,0.00011232,2]
[422371098,1778889041000,-500.0,0.00011232,2]
[422371103,1778889041000,-1493.38,0.00011232,2]
[422371106,1778889041000,-500.0,0.00011232,2]
[422371113,1778889041000,-500.0,0.00011232,2]
[422371116,1778889041000,-617.52,0.00011232,2]
[422371107,1778889041000,-1566.92,0.00011232,2]
[422371104,1778889041000,-625.76,0.00011232,2]
[422371110,1778889041000,-521.88,0.00011232,2]
[422371114,1778889041000,-1862.75,0.00011232,2]
[422371108,1778889041000,-621.63,0.00011232,2]
[422371130,1778889041000,-1528.02,0.00011232,2]
[422371143,1778889041000,-1410.14,0.00011232,2]
[422371112,1778889041000,-500.0,0.00011232,2]
[422371138,1778889041000,-871.29,0.00011232,2]
[422371161,1778889041000,-2701.59,0.00011232,2]
[422371162,1778889041000,-1733.94,0.00011232,2]
[422371160,1778889041000,-897.79,0.00011232,2]
[422371163,1778889041000,-1355.62,0.00011232,2]
[422371165,1778889041000,-32191.41,0.00011232,2]
[422371166,1778889041000,-807.26,0.00011232,2]
[422371168,1778889041000,-1908.77,0.00011232,2]
[422371164,1778889041000,-500.0,0.00011232,2]
[422371167,1778889041000,-686.46,0.00011232,2]
[422371174,1778889041000,-500.0,0.00011232,2]
[422371175,1778889041000,-2554.49,0.00011232,2]
[422371177,1778889041000,-4575.68,0.00011232,2]
[422371173,1778889041000,-906.0,0.00011232,2]
[422371176,1778889041000,-2028.77,0.00011232,2]
[422371183,1778889041000,-2595.57,0.00011232,2]
[422371178,1778889041000,-735.99,0.00011232,2]
[422371181,1778889041000,-4054.46,0.00011232,2]
[422371182,1778889041000,-500.0,0.00011232,2]
[422371140,1778889041000,-811.64,0.00011232,2]
[422371170,1778889041000,-1786.95,0.00011232,2]
[422371158,1778889041000,-1570.05,0.00011232,2]
[422371171,1778889041000,-623.01,0.00011232,2]
[422371169,1778889041000,-6250.19,0.00011232,2]
[422371136,1778889041000,-548.61,0.00011232,2]
[422371159,1778889041000,-3780.33,0.00011232,2]
[422371144,1778889041000,-500.0,0.00011232,2]
[422371137,1778889041000,-5036.7,0.00011232,2]
[422371135,1778889041000,-1668.17,0.00011232,2]
[422371139,1778889041000,-500.0,0.00011232,2]
[422371146,1778889041000,-500.0,0.00011232,2]
[422371156,1778889041000,-2726.88,0.00011232,2]
[422371155,1778889041000,-500.0,0.00011232,2]
[422371157,1778889041000,-500.0,0.00011232,2]
[422371134,1778889041000,-500.0,0.00011232,2]
[422371147,1778889041000,-4344.7,0.00011232,2]
[422371149,1778889041000,-500.0,0.00011232,2]
[422371152,1778889041000,-500.0,0.00011232,2]
[422371151,1778889041000,-500.0,0.00011232,2]
[422371154,1778889041000,-1789.66,0.00011232,2]
[422371150,1778889041000,-2015.84,0.00011232,2]
[422371148,1778889041000,-500.0,0.00011232,2]
[422371145,1778889041000,-1021.0,0.00011232,2]
[422371153,1778889041000,-500.0,0.00011232,2]
[422371271,1778889042000,-500.0,0.00011506,2]
[422371266,1778889042000,-500.0,0.00011506,2]
[422371264,1778889042000,-544.02,0.00011506,2]
[422371262,1778889042000,-1371.39,0.00011506,2]
[422371260,1778889042000,-500.0,0.00011506,2]
[422371258,1778889042000,-500.0,0.00011506,2]
[422371259,1778889042000,-936.17,0.00011506,2]
[422371253,1778889042000,-617.52,0.00011506,2]
[422371255,1778889042000,-1435.36,0.00011506,2]
[422371269,1778889042000,-500.0,0.00011506,2]
[422371252,1778889042000,-3313.96,0.00011506,2]
[422371256,1778889042000,-1046.52,0.00011506,2]
[422371257,1778889042000,-528.76,0.00011506,2]
[422371267,1778889042000,-1528.02,0.00011506,2]
[422371278,1778889042000,-1380.24,0.00011506,2]
[422371263,1778889042000,-500.0,0.00011506,2]
[422371265,1778889042000,-1298.23,0.00011506,2]
[422371268,1778889042000,-1376.69,0.00011506,2]
[422371272,1778889042000,-1668.17,0.00011506,2]
[422371275,1778889042000,-871.29,0.00011506,2]
[422371276,1778889042000,-500.0,0.00011506,2]
[422371273,1778889042000,-548.61,0.00011506,2]
[422371274,1778889042000,-5036.7,0.00011506,2]
[422371277,1778889042000,-811.64,0.00011506,2]
[422371280,1778889042000,-4127.74,0.00011506,2]
[422371287,1778889042000,-2015.84,0.00011506,2]
[422371281,1778889042000,-500.0,0.00011506,2]
[422371254,1778889042000,-1668.01,0.00011506,2]
[422371279,1778889042000,-1410.14,0.00011506,2]
[422371270,1778889042000,-4382.9,0.00011506,2]
[422371250,1778889042000,-500.0,0.00011506,2]
[422371231,1778889042000,-500.0,0.00011506,2]
[422371251,1778889042000,-1862.75,0.00011506,2]
[422371283,1778889042000,-500.0,0.00011506,2]
[422371223,1778889042000,-587.98,0.00011506,2]
[422371221,1778889042000,-500.0,0.00011506,2]
[422371222,1778889042000,-616.44491279,0.00011506,2]
[422371227,1778889042000,-531.25,0.00011506,2]
[422371235,1778889042000,-500.0,0.00011506,2]
[422371224,1778889042000,-500.0,0.00011506,2]
[422371225,1778889042000,-500.0,0.00011506,2]
[422371228,1778889042000,-500.0,0.00011506,2]
[422371229,1778889042000,-1382.74,0.00011506,2]
[422371226,1778889042000,-814.91,0.00011506,2]
[422371232,1778889042000,-799.49,0.00011506,2]
[422371234,1778889042000,-500.0,0.00011506,2]
[422371233,1778889042000,-500.0,0.00011506,2]
[422371230,1778889042000,-629.14,0.00011506,2]
[422371236,1778889042000,-500.0,0.00011506,2]
[422371238,1778889042000,-500.0,0.00011506,2]
[422371239,1778889042000,-930.7,0.00011506,2]
[422371247,1778889042000,-521.88,0.00011506,2]
[422371244,1778889042000,-1566.92,0.00011506,2]
[422371245,1778889042000,-621.63,0.00011506,2]
[422371237,1778889042000,-541.48,0.00011506,2]
[422371248,1778889042000,-845.37,0.00011506,2]
[422371249,1778889042000,-500.0,0.00011506,2]
[422371242,1778889042000,-500.0,0.00011506,2]
[422371243,1778889042000,-500.0,0.00011506,2]
[422371240,1778889042000,-1493.38,0.00011506,2]
[422371241,1778889042000,-625.76,0.00011506,2]
[422371246,1778889042000,-500.0,0.00011506,2]
[422371261,1778889042000,-380.04327608,0.00011506,2]
[422371288,1778889042000,-500.0,0.00011506,2]
[422371298,1778889042000,-2701.59,0.00011506,2]
[422371289,1778889042000,-500.0,0.00011506,2]
[422371321,1778889042000,-3000.0,0.0001151,30]
[422371319,1778889042000,-2595.57,0.00011506,2]
[422371323,1778889042000,-3000.0,0.0001153,30]
[422371328,1778889042000,-720.0,0.00011567,2]
[422371329,1778889042000,-3000.0,0.0001157,30]
[422371325,1778889042000,-3000.0,0.0001154,30]
[422371324,1778889042000,-6404.53672213,0.00011536,2]
[422371326,1778889042000,-3000.0,0.0001155,30]
[422371327,1778889042000,-3000.0,0.0001156,30]
[422371331,1778889042000,-3000.0,0.0001159,30]
[422371342,1778889042000,-160.0,0.0001176,2]
[422371344,1778889042000,-18956.975802,0.0001176,2]
[422371341,1778889042000,-18323.856807,0.0001176,2]
[422371332,1778889042000,-3000.0,0.000116,30]
[422371318,1778889042000,-500.0,0.00011506,2]
[422371343,1778889042000,-9558.487901,0.0001176,2]
[422371345,1778889042000,-903.40790139,0.00011769,2]
[422371330,1778889042000,-3000.0,0.0001158,30]
[422371333,1778889042000,-3000.0,0.0001161,30]
[422371340,1778889042000,-9241.928403,0.0001176,2]
[422371336,1778889042000,-5164.342331,0.0001163,30]
[422371337,1778889042000,-225.85197535,0.0001165,2]
[422371335,1778889042000,-3000.0,0.0001162,30]
[422371338,1778889042000,-160.0,0.0001176,2]
[422371346,1778889042000,-1337.0752,0.0001178,2]
[422371347,1778889042000,-950.7919,0.0001178,2]
[422371349,1778889042000,-486.65784418,0.0001178,2]
[422371351,1778889042000,-728.81,0.0001178,2]
[422371350,1778889042000,-500.0,0.0001178,2]
[422371286,1778889042000,-500.0,0.00011506,2]
[422371334,1778889042000,-9213.31034698,0.00011613,2]
[422371322,1778889042000,-3000.0,0.0001152,30]
[422371348,1778889042000,-571.9627,0.0001178,2]
[422371317,1778889042000,-4054.46,0.00011506,2]
[422371320,1778889042000,-500.0,0.0001151,2]
[422371285,1778889042000,-500.0,0.00011506,2]
[422371284,1778889042000,-4344.7,0.00011506,2]
[422371290,1778889042000,-500.0,0.00011506,2]
[422371291,1778889042000,-1789.66,0.00011506,2]
[422371293,1778889042000,-2726.88,0.00011506,2]
[422371294,1778889042000,-500.0,0.00011506,2]
[422371296,1778889042000,-3780.33,0.00011506,2]
[422371295,1778889042000,-1570.05,0.00011506,2]
[422371292,1778889042000,-500.0,0.00011506,2]
[422371299,1778889042000,-1733.94,0.00011506,2]
[422371302,1778889042000,-32191.41,0.00011506,2]
[422371297,1778889042000,-897.79,0.00011506,2]
[422371301,1778889042000,-500.0,0.00011506,2]
[422371282,1778889042000,-1021.0,0.00011506,2]
[422371300,1778889042000,-1355.62,0.00011506,2]
[422371303,1778889042000,-807.26,0.00011506,2]
[422371313,1778889042000,-2028.77,0.00011506,2]
[422371309,1778889042000,-1416.21,0.00011506,2]
[422371312,1778889042000,-2554.49,0.00011506,2]
[422371304,1778889042000,-686.46,0.00011506,2]
[422371306,1778889042000,-6250.19,0.00011506,2]
[422371308,1778889042000,-623.01,0.00011506,2]
[422371314,1778889042000,-4575.68,0.00011506,2]
[422371315,1778889042000,-735.99,0.00011506,2]
[422371311,1778889042000,-500.0,0.00011506,2]
[422371310,1778889042000,-906.0,0.00011506,2]
[422371316,1778889042000,-2160.47,0.00011506,2]
[422371305,1778889042000,-1908.77,0.00011506,2]
[422371307,1778889042000,-1786.95,0.00011506,2]
[422371417,1778889043000,-500.0,0.0001178,2]
[422371420,1778889043000,-500.0,0.0001178,2]
[422371415,1778889043000,-1566.92,0.0001178,2]
[422371422,1778889043000,-1862.75,0.0001178,2]
[422371402,1778889043000,-500.0,0.0001178,2]
[422371413,1778889043000,-500.0,0.0001178,2]
[422371405,1778889043000,-500.0,0.0001178,2]